bitfinex/quotes_ETHUSD_20250608
["timestamp","ask_amount","ask_price","bid_price","bid_amount"]
[1749393051399,2.62120435,2509.1,2509.0,3.98556295]
[1749393055742,2.62120435,2509.1,2508.9,3.98580404]
[1749393055743,2.62120435,2509.1,2508.9,3.98576046]
[1749393056034,0.94420435,2509.0,2508.9,3.98576046]
[1749393056206,1.677,2509.1,2508.9,3.98576046]
[1749393057841,1.677,2509.1,2509.0,3.98565165]
[1749393058046,9.11253653,2509.1,2509.0,3.98565165]
[1749393058215,8.166,2509.1,2509.0,3.98565165]
[1749393059110,1.677,2509.1,2509.0,3.98565165]
[1749393059347,17.217,2509.3,2509.2,3.98533397]
[1749393059553,17.217,2509.3,2509.2,4.76883397]
[1749393059554,18.894,2509.3,2509.2,4.76883397]
[1749393059722,18.894,2509.3,2509.2,20.76883397]
[1749393060109,17.217,2509.3,2509.2,3.98533397]
[1749393060317,18.894,2509.3,2509.2,3.98533397]
[1749393063848,18.894,2509.3,2509.1,3.98545496]
[1749393064023,18.894,2509.3,2509.0,3.98557348]
[1749393064223,18.894,2509.3,2508.6,6.489]
[1749393064224,20.48915382,2509.3,2508.7,3.98607564]
[1749393064429,0.9461366,2509.2,2508.9,3.98579656]
[1749393064629,6.488,2509.1,2508.9,3.98579656]
[1749393064950,6.488,2509.1,2508.9,3.98575484]
[1749393065250,6.488,2509.1,2509.0,3.98565165]
[1749393065917,6.488,2509.1,2508.9,3.98569096]
[1749393066118,6.488,2509.1,2509.0,3.98565165]
[1749393066814,6.488,2509.1,2508.9,3.98572918]
[1749393067137,6.488,2509.1,2508.8,3.98592743]
[1749393067445,9.95271538,2509.1,2508.7,3.98612827]
[1749393067654,9.95271538,2509.1,2508.9,3.98569807]
[1749393067815,9.18571538,2509.1,2509.0,3.98565165]
[1749393068020,0.94646901,2509.1,2509.0,3.98565165]
[1749393068352,17.217,2509.3,2509.2,3.98533397]
[1749393068550,26.32763184,2509.3,2509.2,3.98533397]
[1749393070173,26.32763184,2509.3,2509.1,3.98540698]
[1749393070368,25.381,2509.3,2509.2,3.98533397]
[1749393070549,26.3282758,2509.3,2509.2,3.98533397]
[1749393070864,18.1642758,2509.3,2509.2,3.98533397]
[1749393071068,26.3282758,2509.3,2509.2,3.98533397]
[1749393071640,18.1642758,2509.3,2509.2,3.98533397]
[1749393071846,26.3282758,2509.3,2509.2,3.98533397]
[1749393073262,18.1642758,2509.3,2509.2,3.98533397]
[1749393073584,26.3282758,2509.3,2509.2,3.98533397]
[1749393074168,18.1642758,2509.3,2509.2,3.98533397]
[1749393074464,17.217,2509.3,2509.2,4.79693397]
[1749393075030,17.217,2509.3,2509.2,3.98533397]
[1749393075251,17.217,2509.3,2509.0,3.98563806]
[1749393075252,25.5943,2509.3,2509.0,3.98563806]
[1749393075470,26.3997,2509.3,2508.7,0.7864]
[1749393075667,0.94841264,2509.2,2509.0,3.98562444]
[1749393075865,26.3997,2509.3,2509.2,3.98533397]
[1749393076031,20.86008935,2509.3,2509.2,3.98533397]
[1749393076233,28.22668935,2509.3,2509.2,3.98533397]
[1749393078493,28.22668935,2509.3,2509.1,3.98542211]
[1749393078698,0.94838935,2509.2,2509.1,3.98542211]
[1749393080791,9.11638935,2509.2,2509.1,3.98542211]
[1749393081157,9.11702897,2509.2,2509.1,3.98542211]
[1749393081398,1.3910804,2509.7,2509.3,0.8241]
[1749393081595,0.9491366,2509.6,2509.5,3.98485754]
[1749393081916,0.9491366,2509.6,2509.4,3.98490361]
[1749393082063,1.679,2509.8,2509.1,16.0]
[1749393082064,1.679,2509.8,2509.5,3.98484771]
[1749393082263,0.94891674,2509.7,2509.5,3.98484771]
[1749393082486,0.94891674,2509.6,2509.5,3.98484771]
[1749393082690,7.45391674,2509.6,2509.5,3.98484771]
[1749393083202,7.45391674,2509.6,2509.4,3.98495491]
[1749393083406,0.94891674,2509.5,2509.4,3.98495491]
[1749393085679,6.505,2509.6,2509.5,3.98485754]
[1749393085882,7.45355527,2509.6,2509.5,3.98485754]
[1749393088068,7.45355527,2509.6,2509.4,3.98490546]
[1749393088309,0.94855527,2509.5,2509.4,3.98490546]
[1749393090414,0.94839823,2509.5,2509.3,3.98515728]
[1749393090615,6.505,2509.6,2509.4,3.98490884]
[1749393090803,0.94822616,2509.5,2509.4,3.98490884]
[1749393094815,0.94822616,2509.5,2509.3,3.98515044]
[1749393095025,1.57412262,2509.5,2509.3,3.98515044]
[1749393095223,0.94871821,2509.4,2509.1,3.98539454]
[1749393095401,0.8288,2509.5,2509.3,3.98516004]
[1749393095601,0.94874035,2509.4,2509.3,3.98516004]
[1749393095807,0.8288,2509.5,2509.3,3.98516004]
[1749393096001,0.94874197,2509.4,2509.3,3.98516004]
[1749393096388,0.7698,2509.7,2509.5,3.98479683]
[1749393096602,9.118863,2509.6,2509.5,3.98479683]
[1749393097123,9.118863,2509.6,2508.9,0.8015]
[1749393097346,9.118863,2509.6,2508.7,3.98610887]
[1749393097347,0.7698,2509.4,2508.7,3.98603399]
[1749393097624,0.7698,2509.2,2508.6,3.98616426]
[1749393097825,7.443863,2509.1,2508.5,0.2261901]
[1749393098038,2.62689189,2509.0,2508.6,3.98621929]
[1749393098236,1.678,2509.0,2508.5,0.2261901]
[1749393098535,1.678,2509.0,2508.5,4.21259451]
[1749393098536,0.7698,2508.8,2508.5,4.21259451]
[1749393099017,0.7698,2508.8,2508.6,3.9862868]
[1749393099401,6.494,2508.7,2508.5,0.2261901]
[1749393099594,6.494,2508.7,2508.5,4.21251653]
[1749393101435,6.494,2508.7,2508.6,3.98628717]
[1749393101732,1.51264442,2509.2,2508.5,1.0551901]
[1749393101933,2.62674149,2509.1,2509.0,3.98565165]
[1749393102131,1.679,2509.1,2509.0,3.98565165]
[1749393102912,1.679,2509.1,2508.9,3.98579201]
[1749393103115,1.679,2509.1,2509.0,3.98565165]
[1749393105237,1.679,2509.1,2508.9,3.985729]
[1749393105918,1.679,2509.1,2508.9,3.98573041]
[1749393108408,1.679,2509.1,2508.8,3.98589559]
[1749393108811,1.679,2509.1,2508.7,3.98608847]
[1749393109022,1.679,2509.1,2508.8,3.98596938]
[1749393109838,1.679,2509.1,2508.9,3.98575184]
[1749393110039,1.679,2509.1,2509.0,3.98565165]
[1749393110413,1.679,2509.1,2508.9,3.98574908]
[1749393112006,1.679,2509.1,2508.6,3.98625343]
[1749393112221,0.8111,2509.0,2508.7,3.98603464]
[1749393112421,7.3051,2509.0,2508.8,3.98595851]
[1749393113208,7.3051,2509.0,2508.9,3.98581051]
[1749393113415,8.174,2509.0,2508.9,3.98581051]
[1749393113610,1.68,2509.0,2508.9,3.98581051]
[1749393113948,17.219,2509.3,2509.2,3.98533397]
[1749393114104,25.397,2509.3,2509.2,3.98533397]
[1749393114307,17.219,2509.3,2509.2,3.98533397]
[1749393114549,25.397,2509.3,2509.2,3.98533397]
[1749393115442,25.397,2509.3,2509.1,3.98543611]
[1749393116241,26.31262928,2509.3,2509.0,3.98560043]
[1749393116449,0.94747664,2509.2,2509.0,3.98560043]
[1749393116753,0.8111,2509.1,2508.8,3.98586641]
[1749393116954,0.8111,2509.1,2508.9,3.98579883]
[1749393117318,0.55,2509.2,2509.0,3.98564699]
[1749393117619,0.94760952,2509.1,2508.9,3.98574037]
[1749393117854,3.71587989,2509.2,2508.9,3.98574037]
[1749393118258,0.94764433,2509.1,2508.8,3.98590196]
[1749393118554,3.71587989,2509.2,2508.8,3.98590196]
[1749393118789,0.94764151,2509.1,2508.9,3.98580709]
[1749393119061,3.30873277,2509.1,2508.9,3.98580709]
[1749393120455,3.30873277,2509.1,2508.8,3.98589182]
[1749393120656,3.30873277,2509.1,2508.7,3.98604299]
[1749393120861,1.753846,2509.0,2508.8,3.9859653]
[1749393121053,0.8061,2509.0,2508.8,3.9859653]
[1749393122262,0.8061,2509.0,2508.6,3.98620996]
[1749393122263,6.494,2508.9,2508.6,3.98620996]
[1749393122473,6.494,2508.9,2508.8,3.98596938]
[1749393123161,6.494,2508.9,2508.6,3.9862021]
[1749393123364,6.494,2508.9,2508.7,3.98604048]
[1749393124269,6.494,2508.9,2508.8,3.98596938]
[1749393124590,0.8061,2509.0,2508.8,3.98596938]
[1749393124591,0.8061,2509.0,2508.9,3.98581051]
[1749393124883,9.92537468,2509.0,2508.9,3.98581051]
[1749393125550,9.92537468,2509.0,2508.6,3.98627041]
[1749393125750,8.17,2508.9,2508.7,3.98601838]
[1749393125933,0.8061,2509.0,2508.6,3.98615181]
[1749393126134,9.11872689,2508.9,2508.6,3.98615181]
[1749393126366,8.17,2508.9,2508.7,3.98612257]
[1749393126563,8.17,2508.9,2508.6,3.98624525]
[1749393126768,8.17,2508.9,2508.5,4.21262561]
[1749393126966,8.17,2508.9,2508.6,3.98613643]
[1749393127793,0.9488785,2508.8,2508.5,4.21255964]
[1749393127993,1.3765,2508.7,2508.5,0.2261901]
[1749393128286,1.49874954,2508.6,2508.5,0.2261901]
[1749393128490,5.48503671,2508.6,2508.5,0.2261901]
[1749393128692,6.31153671,2508.6,2508.5,0.2261901]
[1749393130871,2.32524954,2508.6,2508.5,0.2261901]
[1749393131073,11.79821235,2508.6,2508.5,0.2261901]
[1749393132409,15.78449952,2508.6,2508.5,0.2261901]
[1749393132543,15.7826254,2508.6,2508.5,0.2261901]
[1749393134966,4.53716735,2508.1,2507.6,4.7642928]
[1749393135163,8.71095673,2508.0,2507.7,3.98763976]
[1749393136435,8.71095673,2508.0,2507.6,3.98779261]
[1749393136676,0.55,2507.9,2507.4,0.8096]
[1749393136889,1.3454,2507.9,2507.5,3.98803589]
[1749393137091,0.55,2507.9,2507.7,3.98761995]
[1749393137768,0.55,2507.9,2507.8,3.98755881]
[1749393137964,0.55,2507.9,2507.5,3.98797936]
[1749393138192,0.55,2507.9,2507.6,3.98774236]
[1749393139091,0.55,2507.9,2507.6,3.98783649]
[1749393139294,0.55,2507.9,2507.8,3.98755881]
[1749393140706,1.50224,2507.9,2507.7,3.98763112]
[1749393142857,0.95224,2507.9,2507.8,3.98755881]
[1749393143062,8.17,2507.9,2507.8,3.98755881]
[1749393143263,0.55,2508.0,2507.9,3.98739981]
[1749393143452,0.20809967,2508.1,2508.0,3.98724082]
[1749393143648,8.37809967,2508.1,2508.0,3.98724082]
[1749393143854,8.37809967,2508.1,2507.6,0.8076]
[1749393144049,1.23651601,2508.0,2507.7,3.9876419]
[1749393144389,1.23651601,2508.0,2507.6,4.79540814]
[1749393144760,1.23651601,2508.0,2507.7,3.98765392]
[1749393146801,1.23651601,2508.0,2507.6,4.79538738]
[1749393147003,1.23651601,2508.0,2507.7,3.98771315]
[1749393147899,1.23651601,2508.0,2507.6,3.98775538]
[1749393148065,1.23651601,2508.0,2507.7,3.9876774]
[1749393149692,1.23651601,2508.0,2507.4,0.825]
[1749393150002,1.23651601,2508.0,2507.6,3.98785538]
[1749393150502,1.23651601,2508.0,2507.7,3.98770856]
[1749393151767,1.23651601,2508.0,2507.5,3.98788716]
[1749393152266,1.23651601,2508.0,2507.6,3.98787685]
[1749393152983,1.43641942,2507.9,2507.6,3.9878356]
[1749393153182,13.12767189,2508.1,2507.6,3.9878356]
[1749393154799,9.14049967,2508.1,2507.8,3.98745243]
[1749393155108,0.20809967,2508.1,2508.0,3.98724082]
[1749393155278,1.678,2508.0,2507.9,3.98738131]
[1749393156172,1.678,2508.0,2507.7,3.98758731]
[1749393156372,2.1713091,2508.0,2507.8,3.98745423]
[1749393157110,2.1713091,2508.0,2507.8,3.98742178]
[1749393157301,1.678,2508.0,2507.5,3.98803589]
[1749393157913,1.678,2508.0,2507.8,3.98740019]
[1749393158118,1.678,2508.0,2507.9,3.98739981]
[1749393159028,0.20809967,2508.1,2507.9,3.98739981]
[1749393159202,8.17,2508.0,2507.9,3.98739981]
[1749393159375,8.17,2508.0,2507.8,3.98743047]
[1749393159776,8.17,2508.0,2507.9,3.98739981]
[1749393160009,9.11764378,2508.0,2507.9,3.98739981]
[1749393160214,9.11773522,2508.0,2507.8,3.98746069]
[1749393160398,8.17,2508.0,2507.8,3.98746069]
[1749393161222,0.20809967,2508.1,2507.8,3.98746069]
[1749393161223,1.678,2507.9,2507.8,4.73865881]
[1749393161527,0.20809967,2508.1,2508.0,3.98724082]
[1749393161729,1.88609967,2508.1,2508.0,3.98724082]
[1749393162339,17.228,2508.4,2508.3,3.98676394]
[1749393162621,20.22631511,2508.4,2508.3,3.98676394]
[1749393162825,0.94819903,2508.4,2508.3,4.73786394]
[1749393163028,1.678,2508.7,2508.6,3.98628717]
[1749393164025,1.678,2508.7,2508.4,3.98655465]
[1749393164195,1.678,2508.7,2508.5,3.98644608]
[1749393165236,1.678,2508.7,2508.6,3.98628717]
[1749393165926,1.678,2508.7,2508.5,3.98641117]
[1749393168113,1.678,2508.7,2508.4,3.98653119]
[1749393168620,2.32034074,2508.7,2508.5,3.98643044]
[1749393168809,1.678,2508.7,2508.5,3.98643044]
[1749393177256,1.678,2508.7,2508.6,3.98628717]
[1749393177605,1.678,2508.7,2508.5,3.9863703]
[1749393180143,1.678,2508.7,2508.6,3.98628717]
[1749393180443,1.678,2508.7,2508.5,3.98635923]
[1749393180624,1.678,2508.7,2508.4,3.98650921]
[1749393180940,1.678,2508.7,2508.5,3.98644384]
[1749393181732,1.678,2508.7,2508.6,3.98628717]
[1749393181926,1.8850486,2509.0,2508.9,3.98581051]
[1749393182711,1.8850486,2509.0,2508.8,4.76549458]
[1749393183940,1.8850486,2509.0,2508.9,3.98581051]
[1749393184140,1.677,2509.0,2508.9,3.98581051]
[1749393184752,3.63905051,2509.1,2509.0,3.98565165]
[1749393185064,1.677,2509.1,2509.0,3.98565165]
[1749393185619,1.677,2509.1,2509.0,4.74085165]
[1749393186016,6.69799888,2509.8,2509.6,3.98458907]
[1749393186257,6.69799888,2509.8,2509.4,0.7552]
[1749393186258,1.677,2509.7,2509.5,3.98479135]
[1749393186640,1.677,2509.7,2509.6,3.98469875]
[1749393188056,1.677,2509.7,2509.6,4.73989875]
[1749393188354,1.677,2509.8,2509.7,3.98447685]
[1749393188719,1.677,2509.8,2509.6,3.98462221]
[1749393190662,1.677,2509.8,2509.7,3.98453998]
[1749393194624,1.677,2509.8,2509.7,4.76513998]
[1749393196661,17.43098066,2510.2,2510.1,3.98390502]
[1749393196878,18.899,2510.2,2510.1,4.80790502]
[1749393201438,1.676,2510.2,2510.1,4.80790502]
[1749393211001,1.676,2510.2,2509.9,0.40820635]
[1749393211152,1.676,2510.2,2509.2,0.51]
[1749393211153,0.7747,2510.1,2509.3,0.8073]
[1749393211352,0.7747,2509.7,2509.0,0.8073]
[1749393211548,1.676,2509.6,2509.2,3.98523281]
[1749393211849,1.676,2509.6,2508.8,0.8073]
[1749393211850,1.676,2509.6,2508.8,4.7932428]
[1749393212100,0.7747,2509.7,2509.3,3.98509013]
[1749393212300,0.7747,2509.7,2509.6,3.98469875]
[1749393212609,1.676,2509.7,2509.5,3.98479425]
[1749393214691,1.676,2509.7,2509.6,3.98469875]
[1749393214858,0.20810409,2510.0,2509.3,0.8073]
[1749393215189,1.676,2509.9,2509.8,3.98437904]
[1749393215350,1.676,2509.9,2509.6,3.98467008]
[1749393215551,1.676,2509.9,2509.7,3.98444304]
[1749393216054,1.676,2509.9,2509.6,3.98462283]
[1749393216353,0.20810409,2510.0,2509.8,3.98427223]
[1749393216582,1.676,2509.9,2509.3,0.8073]
[1749393216752,1.676,2509.9,2509.7,3.98443287]
[1749393217277,1.676,2509.9,2509.6,3.9846339]
[1749393217791,1.676,2509.9,2509.3,4.79246255]
[1749393218290,1.676,2509.9,2509.7,3.98444117]
[1749393219499,1.676,2509.9,2509.6,3.98463106]
[1749393220214,1.676,2509.9,2509.5,3.9848075]
[1749393220389,1.676,2509.9,2509.7,3.98445367]
[1749393220808,1.676,2509.9,2509.8,3.98438122]
[1749393221108,1.676,2509.9,2509.8,4.79668122]
[1749393221607,1.676,2509.9,2509.8,3.98438122]
[1749393222703,1.676,2510.3,2510.1,3.98383667]
[1749393222860,1.676,2510.3,2510.0,3.98399843]
[1749393223620,1.676,2510.3,2509.6,4.80686867]
[1749393223757,1.676,2510.3,2510.1,3.98380802]
[1749393225193,1.94381825,2510.3,2509.8,3.98433754]
[1749393225360,0.7552,2510.2,2509.8,3.98433754]
[1749393226384,0.7552,2510.2,2509.9,3.98421821]
[1749393226803,0.7552,2510.2,2509.8,3.98424565]
[1749393227608,0.7552,2510.2,2509.5,3.98485754]
[1749393227810,1.04591008,2510.2,2509.9,3.98411712]
[1749393229312,1.04591008,2510.2,2510.0,3.98396788]
[1749393229514,0.7552,2510.2,2510.1,3.98390502]
[1749393229720,2.4312,2510.2,2510.1,3.98390502]
[1749393235613,0.7552,2510.2,2510.1,3.98390502]
[1749393236144,1.676,2510.3,2510.2,3.98374631]
[1749393237246,1.0294825,2510.4,2510.3,3.98358761]
[1749393237539,2.7054825,2510.4,2510.3,3.98358761]
[1749393237718,2.7054825,2510.4,2510.2,3.98366005]
[1749393237920,3.62463075,2510.4,2509.7,16.0]
[1749393238118,0.8214,2510.2,2509.8,3.98429178]
[1749393238619,4.80514965,2510.2,2509.8,3.98429178]
[1749393238818,0.8214,2510.2,2509.9,3.98422147]
[1749393239036,0.8214,2510.2,2509.8,3.98430466]
[1749393239243,1.63722917,2510.2,2509.8,3.98430466]
[1749393239440,0.8214,2509.9,2509.5,3.98478053]
[1749393239667,1.676,2509.8,2509.4,3.98499332]
[1749393239954,1.676,2509.8,2509.6,3.98467371]
[1749393241461,1.676,2509.8,2509.4,3.98500099]
[1749393241625,1.676,2509.8,2509.5,3.98481611]
[1749393241827,1.676,2509.8,2509.6,3.98469406]
[1749393242650,0.8214,2509.7,2509.4,3.98492382]
[1749393243274,0.8214,2509.7,2508.9,0.7986]
[1749393243494,0.8214,2509.7,2508.9,16.7986]
[1749393243691,0.8214,2509.7,2509.4,3.98500971]
[1749393245147,0.8214,2509.7,2509.5,3.98484946]
[1749393245692,0.8214,2509.7,2509.4,3.98493309]
[1749393245890,0.8214,2509.7,2509.4,3.98500042]
[1749393246087,0.8214,2509.7,2509.3,3.9850943]
[1749393246450,0.8214,2509.7,2509.4,3.98500463]
[1749393251460,0.8214,2509.7,2509.5,3.98483222]
[1749393251861,0.8214,2509.7,2509.6,3.98469875]
[1749393252095,2.4974,2509.7,2509.6,3.98469875]
[1749393252560,2.4974,2509.7,2509.5,3.98477707]
[1749393253272,0.55,2509.9,2509.6,3.98469875]
[1749393253474,1.676,2509.9,2509.8,3.98438122]
[1749393253686,1.676,2509.9,2509.7,3.98445296]
[1749393254786,1.676,2509.9,2509.8,3.98438122]
[1749393256726,0.20812877,2510.0,2509.9,3.98422247]
[1749393256901,1.88412877,2510.0,2509.9,3.98422247]
[1749393257470,1.676,2510.0,2509.9,3.98422247]
[1749393258316,1.676,2510.0,2509.9,4.73472247]
[1749393258709,1.676,2510.0,2509.9,20.73472247]
[1749393259235,17.216,2510.3,2510.2,3.98374631]
[1749393260238,1.676,2510.4,2510.3,3.98358761]
[1749393278385,7.4293532,2510.8,2510.6,3.9831116]
[1749393278585,1.675,2510.7,2510.6,3.9831116]
[1749393279769,2.61956169,2510.7,2510.6,3.9831116]
[1749393279975,2.61956169,2510.7,2510.5,3.98318147]
[1749393280161,1.675,2510.7,2510.5,3.98318147]
[1749393280587,1.675,2510.7,2510.2,3.98370681]
[1749393280753,1.76082231,2510.6,2510.2,3.98358846]
[1749393280952,0.816,2510.6,2510.2,3.98358846]
[1749393281300,0.816,2510.6,2510.3,3.98353508]
[1749393282147,0.816,2510.6,2510.2,3.98372365]
[1749393282348,0.816,2510.6,2510.4,3.9834082]
[1749393282853,0.816,2510.6,2510.3,3.98352525]
[1749393283053,0.816,2510.6,2510.4,3.98342893]
[1749393283771,0.9459886,2510.5,2510.4,3.98342893]
[1749393284678,1.675,2510.7,2510.6,3.9831116]
[1749393284862,2.62120961,2510.7,2510.6,3.9831116]
[1749393285065,0.94620961,2510.7,2510.6,3.9831116]
[1749393285256,0.2080751,2510.9,2510.7,3.98295296]
[1749393285257,1.675,2510.8,2510.7,3.98295296]
[1749393285447,2.62125045,2510.8,2510.7,3.98295296]
[1749393286849,0.94625045,2510.8,2510.7,3.98295296]
[1749393287055,1.675,2511.0,2510.9,3.9826357]
[1749393287298,2.62164739,2511.0,2510.9,3.9826357]
[1749393287463,2.62164739,2511.0,2510.8,3.98271437]
[1749393287791,1.77514739,2510.9,2510.6,3.98304483]
[1749393288099,0.94664739,2510.8,2510.6,3.98308058]
[1749393288260,0.94664739,2510.7,2510.6,3.98308058]
[1749393289197,0.8285,2510.9,2510.7,3.9828481]
[1749393289378,0.94659388,2510.8,2510.7,3.9828481]
[1749393290504,0.94659388,2510.8,2510.6,3.9830364]
[1749393290681,0.94659388,2510.7,2510.5,3.98315909]
[1749393290881,0.25035,2510.8,2510.5,3.98315909]
[1749393291061,0.94624134,2510.7,2510.5,3.98315909]
[1749393291258,0.25035,2510.8,2510.5,3.98315909]
[1749393291589,0.94616586,2510.7,2510.5,3.98315909]
[1749393291791,7.3125,2510.9,2510.5,3.98315909]
[1749393291998,0.94599474,2510.8,2510.5,3.98315909]
[1749393292194,0.94599474,2510.7,2510.6,3.98310842]
[1749393296018,0.94599474,2510.7,2510.6,3.9831116]
[1749393298797,2.62099474,2510.7,2510.6,3.9831116]
[1749393303638,0.7668,2510.6,2510.4,3.98341272]
[1749393304537,0.94574881,2510.5,2510.4,3.98341272]
[1749393304826,0.94574881,2510.5,2510.1,3.98381538]
[1749393304827,0.7668,2510.4,2510.1,3.98381538]
[1749393305040,0.7668,2510.4,2509.8,16.0]
[1749393305188,0.7668,2510.4,2510.2,3.98373026]
[1749393305387,0.7668,2510.4,2510.3,3.98358761]
[1749393305626,1.675,2510.4,2510.3,3.98358761]
[1749393306896,1.675,2510.6,2510.5,3.98327026]
[1749393309538,7.2829,2510.9,2510.7,3.98295296]
[1749393309733,1.675,2510.8,2510.7,3.98295296]
[1749393309932,1.54899576,2510.9,2510.7,3.98295296]
[1749393310139,1.675,2510.8,2510.7,3.98295296]
[1749393310340,1.675,2510.8,2510.6,3.98303504]
[1749393311529,1.675,2510.8,2510.5,3.98319775]
[1749393312231,0.7999,2510.9,2510.5,3.98319775]
[1749393312432,1.675,2510.8,2510.5,3.98319775]
[1749393312829,0.7999,2510.9,2510.5,3.98319775]
[1749393313027,1.675,2510.7,2510.6,3.9831116]
[1749393314531,1.675,2510.8,2510.7,3.98295296]
[1749393317175,2.62256876,2510.8,2510.6,3.98302081]
[1749393317347,0.94756876,2510.7,2510.6,3.98302081]
[1749393320751,8.61428994,2511.0,2510.5,0.7768]
[1749393320752,0.94682899,2511.0,2510.5,0.7768]
[1749393320952,0.94682899,2511.0,2510.8,3.98279432]
[1749393320953,2.62250306,2510.9,2510.8,3.98279432]
[1749393321586,0.94750306,2510.9,2510.8,3.98279432]
[1749393322888,0.94750306,2510.9,2510.8,4.75959432]
[1749393323388,2.41377135,2511.0,2510.9,3.9826357]
[1749393323691,3.36096777,2511.0,2510.9,3.9826357]
[1749393324279,3.36096777,2511.0,2510.6,0.7768]
[1749393324476,2.74986813,2511.0,2510.9,3.9826357]
[1749393324794,3.69699868,2511.0,2510.6,0.7768]
[1749393324991,2.41377135,2511.0,2510.6,0.7768]
[1749393325490,2.41377135,2511.0,2510.9,3.9826357]
[1749393325692,3.36061478,2511.0,2510.9,3.9826357]
[1749393329441,3.36061478,2511.0,2510.4,0.8069]
[1749393329590,0.7977,2510.9,2510.7,3.98286138]
[1749393329942,1.11884714,2510.9,2510.5,3.98315077]
[1749393330098,0.94638971,2510.8,2510.6,3.9831026]
[1749393330295,1.11884714,2510.9,2510.6,3.9831026]
[1749393330530,0.94639022,2510.8,2510.6,3.9831026]
[1749393330730,1.11884714,2510.9,2510.6,3.9831026]
[1749393330932,1.94794724,2510.8,2510.6,3.9831026]
[1749393331093,1.00146185,2510.8,2510.6,3.9831026]
[1749393331289,1.00146185,2510.8,2510.7,3.98295296]
[1749393331524,1.9479498,2510.8,2510.7,3.98295296]
[1749393332804,1.9479498,2510.8,2510.2,16.8069]
[1749393333003,1.11884714,2510.9,2510.6,3.98305218]
[1749393333202,0.94646781,2510.8,2510.6,3.98305218]
[1749393333404,1.11884714,2510.9,2510.6,3.98305218]
[1749393333630,0.94643609,2510.8,2510.6,3.98305218]
[1749393333831,1.11884714,2510.9,2510.6,3.98305218]
[1749393334016,1.94791638,2510.8,2510.6,3.98305218]
[1749393334194,1.00146185,2510.8,2510.6,3.98305218]
[1749393335119,1.00146185,2510.8,2510.7,3.98295296]
[1749393335335,1.94788722,2510.8,2510.7,3.98295296]
[1749393335495,2.41377135,2511.0,2510.9,3.9826357]
[1749393335694,3.36024098,2511.0,2510.9,3.9826357]
[1749393336949,1.68524098,2511.0,2510.9,4.7713357]
[1749393337154,0.73877135,2511.0,2510.9,4.7713357]
[1749393338437,0.73877135,2511.0,2510.9,3.9826357]
[1749393338756,1.68527749,2511.0,2510.9,3.9826357]
[1749393340656,0.73877135,2511.0,2510.9,3.9826357]
[1749393341161,1.68534956,2511.0,2510.9,3.9826357]
[1749393342149,0.73877135,2511.0,2510.9,3.9826357]
[1749393343534,1.68541485,2511.0,2510.8,3.9827499]
[1749393343718,0.73877135,2511.0,2510.8,3.9827499]
[1749393343920,0.73877135,2511.0,2510.8,3.98278977]
[1749393345512,0.73877135,2511.0,2510.7,3.98287598]
[1749393345870,4.72125339,2511.0,2510.5,3.98318594]
[1749393346061,1.71336843,2510.9,2510.6,3.98310935]
[1749393346389,0.7666,2510.9,2510.6,3.98310935]
[1749393346796,0.7666,2510.9,2510.5,3.98318541]
[1749393347095,0.7666,2510.9,2510.6,3.9830362]
[1749393348224,0.7666,2510.9,2510.4,3.98336276]
[1749393348663,0.7666,2510.9,2510.5,3.98318319]
[1749393348868,0.7666,2510.9,2510.6,3.98307933]
[1749393350690,0.7666,2510.9,2510.5,3.98319118]
[1749393351871,0.94770632,2510.8,2510.5,3.98319118]
[1749393352096,0.7666,2510.9,2510.5,3.98319118]
[1749393352298,0.9477375,2510.8,2510.5,3.98319118]
[1749393352498,0.7666,2510.9,2510.5,3.98319118]
[1749393352730,0.94774224,2510.8,2510.5,3.98319118]
[1749393352892,0.7666,2510.9,2510.5,3.98319118]
[1749393353092,0.94788979,2510.8,2510.5,3.98319118]
[1749393353420,0.7666,2510.9,2510.5,3.98319118]
[1749393353605,0.94789296,2510.8,2510.5,3.98319118]
[1749393353807,0.7666,2510.9,2510.5,3.98319118]
[1749393354006,0.94793079,2510.8,2510.5,3.98319118]
[1749393354331,0.7666,2510.9,2510.5,3.98319118]
[1749393354508,0.94793209,2510.8,2510.4,3.98329648]
[1749393354708,1.86895431,2510.9,2510.4,3.98329648]
[1749393355035,0.94789458,2510.8,2510.4,3.98329648]
[1749393355194,0.94789458,2510.7,2510.4,3.98329648]
[1749393355533,3.98284832,2510.8,2509.9,0.8006]
[1749393355700,3.98317581,2510.6,2510.2,16.0]
[1749393355902,6.49027581,2510.6,2510.2,16.0]
[1749393356094,6.49027581,2510.6,2510.1,19.98390051]
[1749393356294,2.5071,2510.6,2510.2,3.98372285]
[1749393356538,2.5071,2510.6,2510.1,19.98381608]
[1749393356744,2.5071,2510.6,2510.2,3.98374061]
[1749393357039,2.5071,2510.6,2510.3,3.98355509]
[1749393358633,2.5071,2510.6,2510.2,3.98365774]
[1749393359508,2.5071,2510.6,2510.1,19.98381363]
[1749393359706,6.49033645,2510.6,2510.0,19.98401967]
[1749393360429,6.49033645,2510.6,2510.0,16.0]
[1749393360430,4.9306534,2510.5,2510.0,16.0]
[1749393360627,0.8242,2510.3,2509.8,3.98425585]
[1749393360819,0.8242,2510.3,2509.7,0.8261]
[1749393361020,0.8242,2510.3,2509.8,3.98437142]
[1749393361345,0.8242,2510.3,2509.9,3.98421803]
[1749393363281,0.8242,2510.3,2509.8,3.98429977]
[1749393363556,1.30495344,2510.3,2509.6,20.8106857]
[1749393364115,5.28863455,2510.3,2509.7,3.98439357]
[1749393364855,0.94728061,2510.2,2509.7,3.98439357]
[1749393365168,5.28863455,2510.3,2509.7,3.98439357]
[1749393365324,0.94696401,2510.2,2509.7,3.98439357]
[1749393365530,5.28863455,2510.3,2509.7,3.98439357]
[1749393365949,0.94696981,2510.2,2509.7,3.98439357]
[1749393366155,5.28863455,2510.3,2509.7,3.98439357]
[1749393366954,1.30495344,2510.3,2509.7,3.98439357]
[1749393367119,1.674,2510.2,2510.1,3.98380912]
[1749393367320,1.674,2510.2,2509.8,4.75736806]
[1749393367543,1.674,2510.2,2509.9,3.98416084]
[1749393367745,1.674,2510.2,2509.8,4.7572961]
[1749393367929,1.674,2510.2,2509.7,3.98447722]
[1749393368255,1.674,2510.2,2509.6,20.7576847]
[1749393368256,0.7761,2510.1,2509.6,20.7576847]